fUST/lending_fUST_20240202
["ID","MTS","AMOUNT","RATE_DAILY","PERIOD"]
[313179053,1706889039416,-5000.0,0.00027084,2]
[313179055,1706889039426,-240.08527459,0.00027091,2]
[313179057,1706889039438,-4012.55904001,0.00027091,2]
[313179058,1706889039450,-747.3556854,0.00027091,2]
[313179059,1706889039459,-226.59104283,0.000271,2]
[313179060,1706889039469,-429.98981572,0.00027155,5]
[313179061,1706889039478,-6563.55240956,0.00027303,4]
[313179062,1706889039493,-2103.41543075,0.00027303,4]
[313179063,1706889039502,-679.74060206,0.00027394,2]
[313179064,1706889039511,-1200.08348294,0.00027394,2]
[313179065,1706889039520,-155.28990697,0.00027394,2]
[313179066,1706889039529,-175.40467432,0.00027395,2]
[313179067,1706889039539,-504.74951952,0.00027395,2]
[313179068,1706889039548,-1758.44451807,0.00027395,2]
[313179069,1706889039558,-4759.57658255,0.00027396,2]
[313179070,1706889039568,-46008.78393677,0.00027396,2]
[313179071,1706889039577,-500.0,0.00027397,2]
[313179072,1706889039586,-500.0,0.00027397,2]
[313179073,1706889039600,-200.0,0.00027397,2]
[313179074,1706889039610,-500.0,0.00027397,2]
[313179075,1706889039620,-500.0,0.00027397,2]
[313179076,1706889039630,-500.0,0.00027397,2]
[313179077,1706889039639,-500.0,0.00027397,2]
[313179078,1706889039648,-230.73943628,0.00027397,2]
[313179079,1706889039658,-517.21069753,0.00027397,2]
[313179080,1706889039667,-304.15075878,0.00027397,2]
[313179081,1706889039679,-195.84924122,0.00027397,2]
[313179082,1706889039688,-500.0,0.00027397,2]
[313179083,1706889039697,-500.0,0.00027397,2]
[313179084,1706889039706,-500.0,0.00027397,2]
[313179085,1706889039716,-500.0,0.00027397,2]
[313179086,1706889039725,-500.0,0.00027397,2]
[313179087,1706889039735,-500.0,0.00027397,2]
[313179088,1706889039744,-500.0,0.00027397,2]
[313179089,1706889039753,-500.0,0.00027397,2]
[313179090,1706889039762,-500.0,0.00027397,2]
[313179091,1706889039772,-500.0,0.00027397,2]
[313179092,1706889039781,-500.0,0.00027397,2]
[313179093,1706889039790,-413.30558141,0.00027397,2]
[313179094,1706889039801,-504.041278,0.00027397,2]
[313179095,1706889039811,-508.23528171,0.00027397,2]
[313179096,1706889039821,-500.0,0.00027397,2]
[313179098,1706889039830,-500.0,0.00027397,2]
[313179100,1706889039841,-500.0,0.00027397,2]
[313179102,1706889039851,-500.0,0.00027397,2]
[313179104,1706889039861,-500.0,0.00027397,2]
[313179106,1706889039871,-500.0,0.00027397,2]
[313179107,1706889039881,-500.0,0.00027397,2]
[313179110,1706889039891,-500.0,0.00027397,2]
[313179112,1706889039900,-500.0,0.00027397,2]
[313179114,1706889039910,-500.0,0.00027397,2]
[313179115,1706889039919,-500.0,0.00027397,2]
[313179116,1706889039928,-415.1082921,0.00027397,2]
[313179118,1706889039946,-84.8917079,0.00027397,2]
[313179120,1706889039960,-500.0,0.00027397,2]
[313179122,1706889039973,-500.0,0.00027397,2]
[313179125,1706889039986,-500.0,0.00027397,2]
[313179127,1706889039998,-510.80103802,0.00027397,2]
[313179129,1706889040009,-500.0,0.00027397,2]
[313179133,1706889040020,-155.0,0.00027397,2]
[313179135,1706889040032,-500.0,0.00027397,2]
[313179138,1706889040045,-500.0,0.00027397,2]
[313179140,1706889040057,-500.0,0.00027397,2]
[313179141,1706889040070,-500.0,0.00027397,2]
[313179143,1706889040083,-151.0,0.00027397,2]
[313179145,1706889040097,-151.0,0.00027397,2]
[313179147,1706889040110,-500.0,0.00027397,2]
[313179149,1706889040121,-555.46,0.00027397,2]
[313179151,1706889040131,-500.0,0.00027397,2]
[313179152,1706889040143,-151.0,0.00027397,2]
[313179153,1706889040154,-500.0,0.00027397,2]
[313179156,1706889040169,-592.86,0.00027397,2]
[313179158,1706889040180,-791.8,0.00027397,2]
[313179160,1706889040192,-500.0,0.00027397,2]
[313179161,1706889040202,-500.0,0.00027397,2]
[313179162,1706889040214,-500.0,0.00027397,2]
[313179164,1706889040226,-500.0,0.00027397,2]
[313179166,1706889040238,-452.88337554,0.00027397,2]
[313179168,1706889040249,-500.0,0.00027397,2]
[313179170,1706889040259,-500.0,0.00027397,2]
[313179171,1706889040270,-500.0,0.00027397,2]
[313179172,1706889040283,-500.0,0.00027397,2]
[313179173,1706889040294,-500.0,0.00027397,2]
[313179174,1706889040305,-264.12011937,0.00027397,2]
[313179175,1706889040317,-610.92919707,0.00027397,2]
[313179176,1706889040328,-500.0,0.00027397,2]
[313179177,1706889040338,-151.0,0.00027397,2]
[313179178,1706889040350,-500.0,0.00027397,2]
[313179179,1706889040361,-191.812558,0.00027397,2]
[313179180,1706889040374,-500.0,0.00027397,2]
[313179181,1706889040385,-500.0,0.00027397,2]
[313179182,1706889040396,-500.0,0.00027397,2]
[313179183,1706889040410,-256.273241,0.00027397,2]
[313179184,1706889040422,-500.0,0.00027397,2]
[313179185,1706889040434,-256.273241,0.00027397,2]
[313179186,1706889040446,-500.0,0.00027397,2]
[313179187,1706889040459,-500.0,0.00027397,2]
[313179188,1706889040471,-500.0,0.00027397,2]
[313179189,1706889040481,-534.87751184,0.00027397,2]
[313179190,1706889040491,-502.98900751,0.00027397,2]
[313179191,1706889040502,-500.0,0.00027397,2]
[313179192,1706889040512,-500.0,0.00027397,2]
[313179193,1706889040523,-500.0,0.00027397,2]
[313179194,1706889040535,-805.4,0.00027397,2]
[313179195,1706889040546,-500.0,0.00027397,2]
[313179196,1706889040558,-500.0,0.00027397,2]
[313179197,1706889040569,-500.0,0.00027397,2]
[313179198,1706889040580,-165.93508033,0.00027397,2]
[313179199,1706889040592,-500.0,0.00027397,2]
[313179200,1706889040602,-2122.06,0.00027397,2]
[313179201,1706889040613,-247.27742966,0.00027397,2]
[313179202,1706889040623,-2074.46,0.00027397,2]
[313179203,1706889040635,-500.0,0.00027397,2]
[313179204,1706889040646,-508.4348856,0.00027397,2]
[313179205,1706889040658,-500.0,0.00027397,2]
[313179206,1706889040668,-500.0,0.00027397,2]
[313179207,1706889040679,-500.0,0.00027397,2]
[313179208,1706889040690,-688.06,0.00027397,2]
[313179209,1706889040701,-861.59,0.00027397,2]
[313179210,1706889040711,-500.0,0.00027397,2]
[313179211,1706889040722,-500.0,0.00027397,2]
[313179212,1706889040733,-500.0,0.00027397,2]
[313179213,1706889040744,-500.0,0.00027397,2]
[313179214,1706889040754,-500.0,0.00027397,2]
[313179215,1706889040765,-500.0,0.00027397,2]
[313179216,1706889040775,-500.0,0.00027397,2]
[313179217,1706889040786,-500.0,0.00027397,2]
[313179218,1706889040799,-876.04,0.00027397,2]
[313179219,1706889040811,-151.0,0.00027397,2]
[313179220,1706889040822,-4528.85,0.00027397,2]
[313179221,1706889040833,-500.0,0.00027397,2]
[313179222,1706889040848,-500.0,0.00027397,2]
[313179223,1706889040859,-686.01,0.00027397,2]
[313179224,1706889040870,-500.0,0.00027397,2]
[313179225,1706889040881,-500.0,0.00027397,2]
[313179226,1706889040892,-500.0,0.00027397,2]
[313179227,1706889040903,-1469.23,0.00027397,2]
[313179228,1706889040913,-8025.11,0.00027397,2]
[313179229,1706889040923,-500.0,0.00027397,2]
[313179230,1706889040934,-500.0,0.00027397,2]
[313179231,1706889040944,-500.0,0.00027397,2]
[313179232,1706889040955,-5571.86,0.00027397,2]
[313179233,1706889040966,-500.0,0.00027397,2]
[313179234,1706889040976,-500.0,0.00027397,2]
[313179235,1706889040987,-500.0,0.00027397,2]
[313179236,1706889040997,-500.0,0.00027397,2]
[313179237,1706889041007,-500.0,0.00027397,2]
[313179238,1706889041018,-500.0,0.00027397,2]
[313179239,1706889041029,-500.0,0.00027397,2]
[313179240,1706889041040,-303.99726441,0.00027397,2]
[313179241,1706889041050,-577.84,0.00027397,2]
[313179242,1706889041060,-625.23,0.00027397,2]
[313179243,1706889041069,-500.0,0.00027397,2]
[313179244,1706889041181,-500.0,0.00027397,2]
[313179245,1706889041195,-500.63,0.00027397,2]
[313179246,1706889041204,-541.84,0.00027397,2]
[313179247,1706889041214,-11326.84,0.00027397,2]
[313179248,1706889041223,-1706.73,0.00027397,2]
[313179249,1706889041232,-500.0,0.00027397,2]
[313179250,1706889041241,-500.0,0.00027397,2]
[313179251,1706889041250,-500.0,0.00027397,2]
[313179252,1706889041259,-500.0,0.00027397,2]
[313179253,1706889041268,-4663.11,0.00027397,2]
[313179254,1706889041277,-2124.65,0.00027397,2]
[313179255,1706889041286,-1072.92,0.00027397,2]
[313179256,1706889041295,-500.0,0.00027397,2]
[313179257,1706889041304,-1639.94,0.00027397,2]
[313179258,1706889041314,-500.0,0.00027397,2]
[313179259,1706889041323,-2292.13,0.00027397,2]
[313179260,1706889041332,-500.0,0.00027397,2]
[313179261,1706889041343,-1000.0,0.00027397,2]
[313179262,1706889041352,-500.0,0.00027397,2]
[313179263,1706889041362,-591.74,0.00027397,2]
[313179264,1706889041371,-500.0,0.00027397,2]
[313179265,1706889041380,-1042.83,0.00027397,2]
[313179266,1706889041389,-151.0,0.00027479,2]
[313179267,1706889041399,-230.26724133,0.00027671,3]
[313179268,1706889041408,-500.0,0.00027671,2]
[313179269,1706889041417,-500.0,0.00027671,2]
[313179270,1706889041426,-500.0,0.00027671,2]
[313179271,1706889041435,-500.0,0.00027671,2]
[313179272,1706889041444,-500.0,0.00027671,2]
[313179273,1706889041454,-500.0,0.00027671,2]
[313179274,1706889041463,-500.0,0.00027671,2]
[313179275,1706889041472,-500.0,0.00027671,2]
[313179276,1706889041481,-500.0,0.00027671,2]
[313179277,1706889041490,-151.0,0.00027671,2]
[313179278,1706889041500,-500.0,0.00027671,2]
[313179279,1706889041508,-500.0,0.00027671,2]
[313179280,1706889041518,-500.0,0.00027671,2]
[313179281,1706889041527,-500.0,0.00027671,2]
[313179282,1706889041537,-172.86629236,0.00027671,2]
[313179283,1706889041546,-500.0,0.00027671,2]
[313179284,1706889041557,-500.0,0.00027671,2]
[313179285,1706889041567,-500.0,0.00027671,2]
[313179286,1706889041577,-500.0,0.00027671,2]
[313179287,1706889041586,-500.0,0.00027671,2]
[313179288,1706889041596,-500.0,0.00027671,2]
[313179289,1706889041605,-500.0,0.00027671,2]
[313179290,1706889041615,-151.0,0.00027671,2]
[313179291,1706889041624,-151.0,0.00027671,2]
[313179292,1706889041634,-555.46,0.00027671,2]
[313179293,1706889041643,-500.0,0.00027671,2]
[313179294,1706889041652,-500.0,0.00027671,2]
[313179295,1706889041662,-592.86,0.00027671,2]
[313179296,1706889041671,-791.8,0.00027671,2]
[313179297,1706889041681,-500.0,0.00027671,2]
[313179298,1706889041690,-500.0,0.00027671,2]
[313179299,1706889041699,-500.0,0.00027671,2]
[313179300,1706889041708,-500.0,0.00027671,2]
[313179301,1706889041717,-500.0,0.00027671,2]
[313179302,1706889041726,-500.0,0.00027671,2]
[313179303,1706889041735,-500.0,0.00027671,2]
[313179304,1706889041745,-500.0,0.00027671,2]
[313179305,1706889041754,-151.0,0.00027671,2]
[313179306,1706889041764,-500.0,0.00027671,2]
[313179307,1706889041773,-500.0,0.00027671,2]
[313179308,1706889041782,-256.273241,0.00027671,2]
[313179309,1706889041792,-500.0,0.00027671,2]
[313179310,1706889041805,-256.273241,0.00027671,2]
[313179311,1706889041814,-500.0,0.00027671,2]
[313179312,1706889041823,-500.0,0.00027671,2]
[313179313,1706889041832,-500.0,0.00027671,2]
[313179314,1706889041843,-500.0,0.00027671,2]
[313179315,1706889041853,-500.0,0.00027671,2]
[313179316,1706889041863,-500.0,0.00027671,2]
[313179317,1706889041872,-805.4,0.00027671,2]
[313179318,1706889041882,-500.0,0.00027671,2]
[313179319,1706889041892,-500.0,0.00027671,2]
[313179320,1706889041900,-500.0,0.00027671,2]
[313179321,1706889041910,-2122.06,0.00027671,2]
[313179322,1706889041919,-2074.46,0.00027671,2]
[313179323,1706889041928,-500.0,0.00027671,2]
[313179324,1706889041937,-500.0,0.00027671,2]
[313179325,1706889041947,-500.0,0.00027671,2]
[313179326,1706889041955,-500.0,0.00027671,2]
[313179327,1706889041965,-688.06,0.00027671,2]
[313179328,1706889041974,-861.59,0.00027671,2]
[313179329,1706889041983,-500.0,0.00027671,2]
[313179330,1706889041992,-500.0,0.00027671,2]
[313179331,1706889042001,-500.0,0.00027671,2]
[313179332,1706889042011,-376.82205216,0.00027671,2]
[313179333,1706889042020,-876.04,0.00027671,2]
[313179334,1706889042030,-151.0,0.00027671,2]
[313179335,1706889042039,-4528.85,0.00027671,2]
[313179336,1706889042049,-500.0,0.00027671,2]
[313179337,1706889042058,-686.01,0.00027671,2]
[313179338,1706889042067,-500.0,0.00027671,2]
[313179339,1706889042076,-500.0,0.00027671,2]
[313179340,1706889042086,-8025.11,0.00027671,2]
[313179341,1706889042098,-1469.23,0.00027671,2]
[313179342,1706889042107,-500.0,0.00027671,2]
[313179343,1706889042116,-500.0,0.00027671,2]
[313179344,1706889042126,-500.0,0.00027671,2]
[313179345,1706889042136,-5571.86,0.00027671,2]
[313179349,1706889042144,-500.0,0.00027671,2]
[313179353,1706889042153,-500.0,0.00027671,2]
[313179356,1706889042163,-500.0,0.00027671,2]
[313179359,1706889042172,-500.0,0.00027671,2]
[313179362,1706889042182,-500.0,0.00027671,2]
[313179364,1706889042192,-486.83043532,0.00027671,2]
[313179367,1706889042201,-500.0,0.00027671,2]
[313179370,1706889042210,-577.84,0.00027671,2]
[313179373,1706889042219,-625.23,0.00027671,2]
[313179376,1706889042228,-500.0,0.00027671,2]
[313179377,1706889042237,-500.63,0.00027671,2]
[313179378,1706889042246,-541.84,0.00027671,2]
[313179379,1706889042256,-11326.84,0.00027671,2]
[313179380,1706889042266,-1706.73,0.00027671,2]
[313179381,1706889042275,-304.37699231,0.00027671,2]
[313179382,1706889042284,-500.0,0.00027671,2]
[313179383,1706889042294,-4663.11,0.00027671,2]
[313179384,1706889042303,-2124.65,0.00027671,2]
[313179386,1706889042312,-195.26414691,0.00027671,2]
[313179388,1706889042321,-1072.92,0.00027671,2]
[313179389,1706889042331,-500.0,0.00027671,2]
[313179390,1706889042343,-1639.94,0.00027671,2]
[313179391,1706889042352,-2292.13,0.00027671,2]
[313179392,1706889042361,-500.0,0.00027671,2]
[313179393,1706889042370,-986.91554819,0.00027671,2]
[313179394,1706889042380,-500.0,0.00027671,2]
[313179395,1706889042389,-591.74,0.00027671,2]
[313179396,1706889042398,-500.0,0.00027671,2]
[313179397,1706889042407,-1042.83,0.00027671,2]
[313179398,1706889042416,-287.06844527,0.00027749,2]
[313179399,1706889042426,-500.0,0.00027749,2]
[313179400,1706889042435,-244.16338703,0.00027749,2]
[313179401,1706889042445,-473.1499494,0.00027749,2]
[313179402,1706889042454,-500.0,0.00027749,2]
[313179403,1706889042463,-500.0,0.00027749,2]
[313179404,1706889042472,-500.0,0.00027749,2]
[313179405,1706889042482,-500.0,0.00027749,2]
[313179406,1706889042491,-500.0,0.00027749,2]
[313179407,1706889042500,-50000.0,0.0002775,5]
[313179408,1706889042510,-151.0,0.0002775,2]
[313179409,1706889042519,-151.0,0.0002775,2]
[313179410,1706889042529,-1000.0,0.00027783,2]
[313179411,1706889042538,-200.0,0.000278,4]
[313179412,1706889042547,-1008.24165472,0.00027874,2]
[313179413,1706889042557,-156.2710581,0.0002789,2]
[313179414,1706889042566,-156.80447565,0.00027943,2]
[313179415,1706889042575,-20910.74795782,0.00027943,2]
[313179416,1706889042585,-151.0,0.00027943,2]
[313179417,1706889042595,-180.88,0.00027943,2]
[313179418,1706889042605,-151.0,0.00027943,2]
[313179419,1706889042614,-256.273241,0.00027943,2]
[313179420,1706889042623,-256.273241,0.00027943,2]
[313179421,1706889042632,-151.0,0.00027945,2]
[313179422,1706889042641,-151.0,0.00027945,2]
[313179423,1706889042650,-500.0,0.00027945,2]
[313179424,1706889042659,-500.0,0.00027945,2]
[313179425,1706889042669,-157.87700474,0.00027945,2]
[313179426,1706889042678,-500.0,0.00027945,2]
[313179427,1706889042687,-500.0,0.00027945,2]
[313179428,1706889042697,-500.0,0.00027945,2]
[313179429,1706889042706,-500.0,0.00027945,2]
[313179430,1706889042715,-500.0,0.00027945,2]
[313179431,1706889042724,-500.0,0.00027945,2]
[313179432,1706889042734,-151.0,0.00027945,2]
[313179433,1706889042743,-500.0,0.00027945,2]
[313179434,1706889042752,-500.0,0.00027945,2]
[313179435,1706889042762,-500.0,0.00027945,2]
[313179436,1706889042771,-500.0,0.00027945,2]
[313179437,1706889042780,-500.0,0.00027945,2]
[313179438,1706889042791,-188.35420273,0.00027945,2]
[313179439,1706889042802,-500.0,0.00027945,2]
[313179440,1706889042811,-500.0,0.00027945,2]
[313179441,1706889042820,-500.0,0.00027945,2]
[313179442,1706889042829,-151.0,0.00027945,2]
[313179443,1706889042839,-555.46,0.00027945,2]
[313179444,1706889042850,-513.66141901,0.00027945,2]
[313179445,1706889042859,-500.0,0.00027945,2]
[313179446,1706889042869,-592.86,0.00027945,2]
[313179447,1706889042879,-791.8,0.00027945,2]
[313179448,1706889042889,-500.0,0.00027945,2]
[313179449,1706889042898,-500.0,0.00027945,2]
[313179450,1706889042907,-500.0,0.00027945,2]
[313179451,1706889042917,-500.0,0.00027945,2]
[313179452,1706889042926,-500.0,0.00027945,2]
[313179453,1706889042934,-500.0,0.00027945,2]
[313179454,1706889042943,-500.0,0.00027945,2]
[313179455,1706889042953,-151.0,0.00027945,2]
[313179456,1706889042962,-500.0,0.00027945,2]
[313179457,1706889042971,-500.0,0.00027945,2]
[313179458,1706889042980,-256.273241,0.00027945,2]
[313179459,1706889042990,-500.0,0.00027945,2]
[313179460,1706889042998,-256.273241,0.00027945,2]
[313179461,1706889043008,-500.0,0.00027945,2]
[313179462,1706889043016,-500.0,0.00027945,2]
[313179463,1706889043026,-500.0,0.00027945,2]
[313179464,1706889043035,-500.0,0.00027945,2]
[313179465,1706889043045,-500.0,0.00027945,2]
[313179466,1706889043054,-805.4,0.00027945,2]
[313179467,1706889043063,-500.0,0.00027945,2]
[313179468,1706889043072,-500.0,0.00027945,2]
[313179469,1706889043082,-2122.06,0.00027945,2]
[313179470,1706889043091,-2074.46,0.00027945,2]
[313179471,1706889043101,-500.0,0.00027945,2]
[313179472,1706889043110,-500.0,0.00027945,2]
[313179473,1706889043120,-500.0,0.00027945,2]
[313179474,1706889043129,-688.06,0.00027945,2]
[313179475,1706889043139,-861.59,0.00027945,2]
[313179476,1706889043149,-500.0,0.00027945,2]
[313179477,1706889043159,-500.0,0.00027945,2]
[313179478,1706889043169,-500.0,0.00027945,2]
[313179479,1706889043178,-876.04,0.00027945,2]
[313179480,1706889043187,-151.0,0.00027945,2]
[313179481,1706889043196,-4528.85,0.00027945,2]
[313179482,1706889043206,-500.0,0.00027945,2]
[313179483,1706889043215,-686.01,0.00027945,2]
[313179484,1706889043225,-500.0,0.00027945,2]
[313179485,1706889043234,-500.0,0.00027945,2]
[313179486,1706889043242,-1469.23,0.00027945,2]
[313179487,1706889043251,-8025.11,0.00027945,2]
[313179488,1706889043260,-238.39963899,0.00027945,2]
[313179489,1706889043269,-500.0,0.00027945,2]
[313179490,1706889043278,-500.0,0.00027945,2]
[313179491,1706889043287,-5571.86,0.00027945,2]
[313179492,1706889043297,-575.10908634,0.00027945,2]
[313179493,1706889043306,-500.0,0.00027945,2]
[313179494,1706889043315,-500.0,0.00027945,2]
[313179495,1706889043324,-500.0,0.00027945,2]
[313179496,1706889043333,-500.0,0.00027945,2]
[313179497,1706889043342,-577.84,0.00027945,2]
[313179498,1706889043351,-625.23,0.00027945,2]
[313179499,1706889043361,-500.0,0.00027945,2]
[313179500,1706889043370,-500.63,0.00027945,2]
[313179501,1706889043379,-541.84,0.00027945,2]
[313179502,1706889043389,-11326.84,0.00027945,2]
[313179503,1706889043398,-1706.73,0.00027945,2]
[313179504,1706889043409,-500.0,0.00027945,2]
[313179505,1706889043420,-4663.11,0.00027945,2]
[313179506,1706889043429,-2124.65,0.00027945,2]
[313179507,1706889043439,-1072.92,0.00027945,2]
[313179508,1706889043448,-500.0,0.00027945,2]
[313179509,1706889043457,-1639.94,0.00027945,2]
[313179510,1706889043467,-2292.13,0.00027945,2]
[313179511,1706889043477,-500.0,0.00027945,2]
[313179512,1706889043487,-500.0,0.00027945,2]
[313179513,1706889043496,-591.74,0.00027945,2]
[313179514,1706889043506,-500.0,0.00027945,2]
[313179515,1706889043516,-1042.83,0.00027945,2]
[313179516,1706889043526,-1000.0,0.00027971,2]
[313179517,1706889043535,-155.04461547,0.00027995,2]
[313179518,1706889043545,-155.35572105,0.00027995,2]
[313179519,1706889043554,-155.04960794,0.00027995,2]
[313179520,1706889043644,-155.25878287,0.00027995,2]
[313179521,1706889043654,-309.99381017,0.00027995,2]
[313179522,1706889043663,-155.1920337,0.00027995,2]
[313179523,1706889043673,-155.50464675,0.00027995,2]
[313179524,1706889043682,-269.17682424,0.00027995,2]
[313179525,1706889043691,-317.41739959,0.00027996,2]
[313179526,1706889043700,-1484.82918512,0.00027996,2]
[313179527,1706889043709,-176.43494112,0.00027996,2]
[313179528,1706889043718,-160.62910141,0.00027996,2]
[313179529,1706889043727,-278.56211482,0.00027996,7]
[313179530,1706889043737,-1697.70596645,0.00027996,2]
[313179531,1706889043746,-366.2903009,0.00027996,2]
[313179532,1706889043755,-157.09018458,0.00027997,2]
[313179533,1706889043764,-903.96695073,0.00027997,2]
[313179534,1706889043774,-1581.70409938,0.00027998,2]
[313179535,1706889043783,-151.0,0.00027998,2]
[313179536,1706889043792,-1996.50298693,0.00027999,2]
[313179537,1706889043804,-260.96295398,0.00027999,2]
[313179538,1706889043814,-180.26589563,0.00028,2]
[313179539,1706889043823,-1152.27002553,0.00028,20]
[313179540,1706889043832,-881.38990186,0.00028,3]
[313179541,1706889043842,-891.65239761,0.00028,2]
[313179542,1706889043851,-3181.99458407,0.00028,2]
[313179543,1706889043861,-3000.0,0.00028,2]
[313179544,1706889043871,-201.261967,0.00028,2]
[313179545,1706889043881,-4427.74923015,0.00028,2]
[313179546,1706889043890,-172.578111,0.00028,2]
[313179547,1706889043900,-240.68690192,0.00028,2]
[313179548,1706889043909,-151.0,0.00028,2]
[313179549,1706889043918,-151.0,0.00028,2]
[313179550,1706889043926,-256.273241,0.00028,2]
[313179551,1706889043935,-256.273241,0.00028,2]
[313179552,1706889043944,-151.0,0.00028,2]
[313179553,1706889043953,-64930.65712693,0.00028,2]
[313179554,1706889043962,-971.951,0.00028,2]
[313179555,1706889043972,-548.296095,0.00028053,2]
[313179556,1706889043981,-855.005904,0.00028053,2]
[313179557,1706889043990,-500.0,0.00028219,2]
[313179558,1706889044000,-500.0,0.00028219,2]
[313179559,1706889044009,-500.0,0.00028219,2]
[313179560,1706889044018,-500.0,0.00028219,2]
[313179561,1706889044028,-206.64006048,0.00028219,2]
[313179562,1706889044037,-500.0,0.00028219,2]
[313179563,1706889044046,-500.0,0.00028219,2]
[313179564,1706889044055,-500.0,0.00028219,2]
[313179565,1706889044064,-500.0,0.00028219,2]
[313179566,1706889044073,-500.0,0.00028219,2]
[313179567,1706889044083,-500.0,0.00028219,2]
[313179568,1706889044093,-500.0,0.00028219,2]
[313179569,1706889044102,-500.0,0.00028219,2]
[313179570,1706889044112,-500.0,0.00028219,2]
[313179571,1706889044121,-500.0,0.00028219,2]
[313179572,1706889044130,-555.46,0.00028219,2]
[313179573,1706889044139,-500.0,0.00028219,2]
[313179574,1706889044148,-592.86,0.00028219,2]
[313179575,1706889044157,-791.8,0.00028219,2]
[313179576,1706889044166,-500.0,0.00028219,2]
[313179577,1706889044177,-500.0,0.00028219,2]
[313179578,1706889044186,-426.67943887,0.00028219,2]
[313179579,1706889044195,-500.0,0.00028219,2]
[313179580,1706889044204,-500.0,0.00028219,2]
[313179581,1706889044213,-500.0,0.00028219,2]
[313179582,1706889044223,-151.0,0.00028219,2]
[313179583,1706889044231,-500.0,0.00028219,2]
[313179584,1706889044241,-500.0,0.00028219,2]
[313179585,1706889044250,-256.273241,0.00028219,2]
[313179586,1706889044259,-500.0,0.00028219,2]
[313179587,1706889044267,-256.273241,0.00028219,2]
[313179588,1706889044277,-500.0,0.00028219,2]
[313179589,1706889044286,-500.0,0.00028219,2]
[313179590,1706889044295,-500.0,0.00028219,2]
[313179591,1706889044304,-500.0,0.00028219,2]
[313179592,1706889044313,-805.4,0.00028219,2]
[313179593,1706889044322,-500.0,0.00028219,2]
[313179594,1706889044331,-500.0,0.00028219,2]
[313179595,1706889044340,-2122.06,0.00028219,2]
[313179596,1706889044349,-2074.46,0.00028219,2]
[313179597,1706889044358,-500.0,0.00028219,2]
[313179598,1706889044367,-500.0,0.00028219,2]
[313179599,1706889044376,-500.0,0.00028219,2]
[313179600,1706889044385,-688.06,0.00028219,2]
[313179601,1706889044394,-861.59,0.00028219,2]
[313179602,1706889044403,-500.0,0.00028219,2]
[313179603,1706889044412,-500.0,0.00028219,2]
[313179604,1706889044422,-500.0,0.00028219,2]
[313179605,1706889044431,-876.04,0.00028219,2]
[313179606,1706889044440,-151.0,0.00028219,2]
[313179607,1706889044449,-4528.85,0.00028219,2]
[313179608,1706889044458,-305.18971501,0.00028219,2]
[313179609,1706889044467,-686.01,0.00028219,2]
[313179610,1706889044476,-500.0,0.00028219,2]
[313179611,1706889044486,-500.0,0.00028219,2]
[313179612,1706889044496,-1469.23,0.00028219,2]
[313179613,1706889044506,-8025.11,0.00028219,2]